Workbook

Sheet Cover
A3: Navigator
C5: =Client_Name -> SumProduct Pty Limited
C6: =Model_Name -> Model 07 - COGS Completed.xlsm
C14: Primary Developer: Liam Bastick
C16: General Cover Notes:
C17: Simple financial model to demonstrate dynamic arrays.
C21: Any queries, please e-mail: | G21: liam.bastick@sumproduct.com
C22: Website: | G22: www.sumproduct.com

Sheet Navigator
A1: Navigator
A2: =Model_Name -> Model 07 - COGS Completed.xlsm
A3: Navigator
E4: Error Checks: | G4: =Overall_Error_Check -> 0
B7: 1 | C7: Table of Contents
F9: Cover
F10: Style Guide
F11: Model Parameters
F12: General Assumptions
F13: Calculations
F14: Opening Balance Sheet
F15: Income Statement
F16: Balance Sheet
F17: Cash Flow Statement
F18: Timing
F19: Lookup
F20: Template Sheet
F21: Error Checks

Sheet Style Guide
A1: =IF(ISERROR(RIGHT(CELL("filename",A1),LEN(CELL("filename",A1))-FIND("]",CELL("filename",A1)))), "", RIGHT(CELL("filename",A1),LEN(CELL("filename",A1))-FIND("]",CELL("filename",A1)))) -> Style Guide
A2: =Model_Name -> Model 07 - COGS Completed.xlsm
A3: Navigator
E4: Error Checks: | I4: =Overall_Error_Check -> 0
B6: =MAX($B$5:$B5)+1 -> 1 | C6: Formatting of Headers / Dividers
C8: Description | I8: Display | K8: Style Name
C10: Sheet Title | I10: =C10 -> Sheet Title | K10: Sheet Title
C11: Model Name | I11: =C11 -> Model Name | K11: Model Name
C13: Header 1 | I13: =C13 -> Header 1 | K13: Header 1
C14: Header 2 | I14: =C14 -> Header 2 | K14: Header 2
C15: Header 3 | I15: =C15 -> Header 3 | K15: Header 3
C16: Header 4 | I16: =C16 -> Header 4 | K16: Header 4
C18: Notes | I18: =C18 -> Notes | K18: Notes
C20: Table Heading | I20: =C20 -> Table Heading | K20: Table Heading
B23: =MAX($B$5:$B22)+1 -> 2 | C23: Individual Cell Styles
C25: Description | I25: Display | K25: Style Name
C27: Assumption | I27: Assumption | K27: =C27 -> Assumption
C29: Constraint | I29: =C29 -> Constraint | K29: =C29 -> Constraint
C31: Empty | K31: =C31 -> Empty
C33: Error Check | I33: 0 | K33: =C33 -> Error Check
C35: Hyperlink | I35: Hyperlink | K35: =C35 -> Hyperlink
C37: Internal Reference | I37: =Days_in_Year -> 365 | K37: =C37 -> Internal Reference
C39: Line Calculation | I39: 77 | K39: Line Calc
C41: Line Total | I41: =I39 -> 77 | K41: =C41 -> Line Total
C43: Parameter | I43: 365 | K43: =C43 -> Parameter
C45: Range Name Description | I45: Not_Named | K45: =C45 -> Range Name Description
C47: Row Reference | I47: =ROW(C47) -> 47 | K47: Row Ref
C49: Row Summary | I49: =I41 -> 77 | K49: =C49 -> Row Summary
C51: Units | I51: A$ | K51: =C51 -> Units
C53: WIP | K53: =C53 -> WIP
B56: =MAX($B$5:$B55)+1 -> 3 | C56: Numerical Styles
C58: Description | I58: Display | K58: Style Name
C60: Comma | I60: 123456.789 | K60: =C60 -> Comma
C62: Comma [0] | I62: -123456.789 | K62: Comma [0]
C64: Currency | I64: 123456.789 | K64: Currency
C66: Currency [0] | I66: 123456.789 | K66: Currency [0]
C68: Date | I68: =TODAY() -> 2024-01-30 | K68: =C68 -> Date
C70: Date Heading | I70: =TODAY() -> 2024-01-30 | K70: =C70 -> Date Heading
C72: Numbers 0 | I72: -123456.789 | K72: =C72 -> Numbers 0
C74: Percent | I74: 0.5 | K74: =C74 -> Percent

Sheet Model Parameters
A1: =IF(ISERROR(RIGHT(CELL("filename",A1),LEN(CELL("filename",A1))-FIND("]",CELL("filename",A1)))), "", RIGHT(CELL("filename",A1),LEN(CELL("filename",A1))-FIND("]",CELL("filename",A1)))) -> Model Parameters
A2: =Model_Name -> Model 07 - COGS Completed.xlsm
A3: Navigator
E4: Error Checks: | I4: =Overall_Error_Check -> 0
B6: =MAX($B$5:$B5)+1 -> 1 | C6: General
C8: Key Inputs
D10: General
E12: Model Name | G12: =IF(ISERROR(OR(FIND("[",CELL("filename",A1)),FIND("]",CELL("filename",A1)))),"",MID(CELL("filename",A1),FIND("[",CELL("filename",A1))+1,FIND("]",CELL("filename",A1))-FIND("[",CELL("filename",A1))-1)) -> Model 07 - COGS Completed.xlsm
E13: Client Name | G13: SumProduct Pty Limited
B16: =MAX($B$5:$B15)+1 -> 2 | C16: General Range Names
C18: Technical Assumptions
E20: Days in Year | G20: 365
E21: Months in Month | G21: 1
E22: Months in Quarter | G22: 3
E23: Months in Half Yr | G23: 6
E24: Months in Year | G24: 12
E25: Quarters in Year | G25: 4
E27: Rounding Accuracy | G27: 5
E29: Very Large Number | G29: 1e+99
E30: Very Small Number | G30: 1e-08
E32: Thousand | G32: 1000
B35: =MAX($B$5:$B34)+1 -> 3 | C35: Technical assumptions
C37: Model information
E39: Start date | G39: =Model_Start_Date -> 2024-07-01
C42: Units
E44: Unit | G44: # | I44: Unit
E45: Currency | G45: US$'000 | I45: Currency
E46: Dollars | G46: $ | I46: Dollars
E47: Boolean | G47: [1,0] | I47: Boolean
E48: Percentage | G48: % | I48: Percentage
E49: No of days | G49: # Days | I49: No_of_Days
E50: Year | G50: Year | I50: Year
E51: No of years | G51: # Year(s) | I51: No_of_Years
E52: Multiplier | G52: x | I52: Multiplier
E53: Weight | G53: kg | I53: Weight
E54: Price / Weight | G54: $/kg | I54: Price_Weight
C57: Financial statement abbreviations
E59: Income Statement | G59: IS | I59: Income_Statement
E60: Balance Sheet | G60: BS | I60: Balance_Sheet
E61: Cash Flow Statement | G61: CFS | I61: Cash_Flow_Statement

Sheet General Assumptions
A1: =IF(ISERROR(RIGHT(CELL("filename",A1),LEN(CELL("filename",A1))-FIND("]",CELL("filename",A1)))), "", RIGHT(CELL("filename",A1),LEN(CELL("filename",A1))-FIND("]",CELL("filename",A1)))) -> General Assumptions
A2: =Model_Name -> Model 07 - COGS Completed.xlsm
A3: Navigator
B4: Error Checks: | F4: =Overall_Error_Check -> 0
J5: =_xlfn.ANCHORARRAY(Timing!J5) -> 2025-06-30 | K5: 2026-06-30 | L5: 2027-06-30 | M5: 2028-06-30 | N5: 2029-06-30
C6: =Timing!C6 -> Start Date | J6: =_xlfn.ANCHORARRAY(Timing!J6) -> 2024-07-01 | K6: 2025-07-01 | L6: 2026-07-01 | M6: 2027-07-01 | N6: 2028-07-01
C7: End Date | J7: =_xlfn.ANCHORARRAY(Timing!J7) -> 2025-06-30 | K7: 2026-06-30 | L7: 2027-06-30 | M7: 2028-06-30 | N7: 2029-06-30
C8: Number of Days | J8: =_xlfn.ANCHORARRAY(Timing!J8) -> 365 | K8: 365 | L8: 365 | M8: 366 | N8: 365
C9: Counter | J9: =_xlfn.ANCHORARRAY(Timing!J9) -> 1 | K9: 2 | L9: 3 | M9: 4 | N9: 5
B11: =MAX($B$10:$B10)+1 -> 1 | C11: =A1 -> General Assumptions
C13: Revenue and related
D15: Sales
E17: Projected sales | G17: =Unit -> # | J17: =_xlfn.ANCHORARRAY(J$9)*100 -> 100 | K17: 200 | L17: 300 | M17: 400 | N17: 500
E18: Unit price | G18: =Currency -> US$'000 | J18: 15
E19: Inflation | G19: =Percentage -> % | J19: =IF(_xlfn.ANCHORARRAY(J$9)=1,,IF((_xlfn.ANCHORARRAY(J$9)+1)/100<6%,(_xlfn.ANCHORARRAY(J$9)+1)/100,6%)) -> 0 | K19: 0.03 | L19: 0.04 | M19: 0.05 | N19: 0.06
D21: Working capital
E23: Days receivable | G23: =No._of_days -> Year | J23: =IF(_xlfn.ANCHORARRAY(J$9),60,) -> 60 | K23: 60 | L23: 60 | M23: 60 | N23: 60
C26: COGS and related
D28: COGS
E30: Gross margin (non-inventory) | G30: =Percentage -> % | J30: =IF(_xlfn.ANCHORARRAY(J$9),70%,) -> 0.7 | K30: 0.7 | L30: 0.7 | M30: 0.7 | N30: 0.7
D32: Working capital
E34: Days payable | G34: =No._of_days -> Year | J34: =IF(_xlfn.ANCHORARRAY(J$9),90,) -> 90 | K34: 90 | L34: 90 | M34: 90 | N34: 90

Sheet Calculations
A1: =IF(ISERROR(RIGHT(CELL("filename",A1),LEN(CELL("filename",A1))-FIND("]",CELL("filename",A1)))), "", RIGHT(CELL("filename",A1),LEN(CELL("filename",A1))-FIND("]",CELL("filename",A1)))) -> Calculations
A2: =Model_Name -> Model 07 - COGS Completed.xlsm
A3: Navigator
B4: Error Checks: | F4: =Overall_Error_Check -> 0
J5: =_xlfn.ANCHORARRAY(Timing!J5) -> 2025-06-30 | K5: 2026-06-30 | L5: 2027-06-30 | M5: 2028-06-30 | N5: 2029-06-30
C6: =Timing!C6 -> Start Date | J6: =_xlfn.ANCHORARRAY(Timing!J6) -> 2024-07-01 | K6: 2025-07-01 | L6: 2026-07-01 | M6: 2027-07-01 | N6: 2028-07-01
C7: End Date | J7: =_xlfn.ANCHORARRAY(Timing!J7) -> 2025-06-30 | K7: 2026-06-30 | L7: 2027-06-30 | M7: 2028-06-30 | N7: 2029-06-30
C8: Number of Days | J8: =_xlfn.ANCHORARRAY(Timing!J8) -> 365 | K8: 365 | L8: 365 | M8: 366 | N8: 365
C9: Counter | J9: =_xlfn.ANCHORARRAY(Timing!J9) -> 1 | K9: 2 | L9: 3 | M9: 4 | N9: 5
B11: =MAX($B$10:$B10)+1 -> 1 | C11: =A1 -> Calculations
C13: ='General Assumptions'!C13 -> Revenue and related
P14: =IFERROR(_xlfn.FORMULATEXT(J14),"") -> 
D15: ='General Assumptions'!D15 -> Sales
E17: ='General Assumptions'!E17 -> Projected sales | G17: =Unit -> # | J17: =_xlfn.ANCHORARRAY('General Assumptions'!J17) -> 100 | K17: 200 | L17: 300 | M17: 400 | N17: 500 | AE17: =IFERROR(_xlfn.FORMULATEXT(J17),"") -> ='General Assumptions'!J17#
E18: ='General Assumptions'!E18 -> Unit price | G18: =Currency -> US$'000 | J18: ='General Assumptions'!J18 -> 15 | AE18: =IFERROR(_xlfn.FORMULATEXT(J18),"") -> ='General Assumptions'!J18
E19: ='General Assumptions'!E19 -> Inflation | G19: =Percentage -> % | J19: =IF(_xlfn.ANCHORARRAY('General Assumptions'!J19)="","",_xlfn.ANCHORARRAY('General Assumptions'!J19)) -> 0 | K19: 0.03 | L19: 0.04 | M19: 0.05 | N19: 0.06 | AE19: =IFERROR(_xlfn.FORMULATEXT(J19),"") -> =IF('General Assumptions'!J19#="","",'General Assumptions'!J19#)
AE20: =IFERROR(_xlfn.FORMULATEXT(J20),"") -> 
E21: Price per unit | G21: =Currency -> US$'000 | J21: =_xlfn.SCAN(J18,_xlfn.ANCHORARRAY(J19),_xlfn.LAMBDA(_xlpm.accumulator,_xlpm.percentage,_xlpm.accumulator*(1+_xlpm.percentage))) -> 15 | K21: 15.45 | L21: 16.068 | M21: 16.8714 | N21: 17.883684 | AE21: =SCAN(J18,J19#,LAMBDA(accumulator,percentage,accumulator*(1+percentage)))
E23: Revenue | G23: =Currency -> US$'000 | J23: =_xlfn.ANCHORARRAY(J17)*_xlfn.ANCHORARRAY(J21) -> 1500 | K23: 3090 | L23: 4820.4 | M23: 6748.56 | N23: 8941.842 | AE23: =J17#*J21#
D25: Working capital
E27: Days receivable | G27: =No._of_days -> Year | J27: =_xlfn.ANCHORARRAY('General Assumptions'!J23) -> 60 | K27: 60 | L27: 60 | M27: 60 | N27: 60 | AE27: ='General Assumptions'!J23#
E29: Days in period | G29: =No._of_days -> Year | J29: =_xlfn.ANCHORARRAY(J$8) -> 365 | K29: 365 | L29: 365 | M29: 366 | N29: 365 | AE29: =J$8#
E31: Closing receivables | G31: =Currency -> US$'000 | J31: =_xlfn.ANCHORARRAY(J23)*_xlfn.ANCHORARRAY(J27)/_xlfn.ANCHORARRAY(J29) -> 246.5753425 | K31: 507.9452055 | L31: 792.3945205 | M31: 1106.321311 | N31: 1469.891836 | AE31: =J23#*J27#/J29#
D33: Control account
E35: Opening receivables | G35: =Currency -> US$'000 | J35: =OFFSET(_xlfn.ANCHORARRAY(J38),,-1) -> 0 | K35: 246.5753425 | L35: 507.9452055 | M35: 792.3945205 | N35: 1106.321311 | AD35: BS | AE35: =OFFSET(J38#,,-1)
E36: Revenue | G36: =Currency -> US$'000 | J36: =_xlfn.ANCHORARRAY(J23) -> 1500 | K36: 3090 | L36: 4820.4 | M36: 6748.56 | N36: 8941.842 | AD36: IS | AE36: =J23#
E37: Cash receipts | G37: =Currency -> US$'000 | J37: =_xlfn.ANCHORARRAY(J38)-_xlfn.ANCHORARRAY(J35)-_xlfn.ANCHORARRAY(J36) -> -1253.424658 | K37: -2828.630137 | L37: -4535.950685 | M37: -6434.633209 | N37: -8578.271476 | AD37: CFS | AE37: =J38#-J35#-J36#
E38: Closing receivables | G38: =Currency -> US$'000 | I38: ='Opening Balance Sheet'!$I$15 -> 0 | J38: =_xlfn.ANCHORARRAY(J31) -> 246.5753425 | K38: 507.9452055 | L38: 792.3945205 | M38: 1106.321311 | N38: 1469.891836 | AD38: BS | AE38: =J31#
C41: COGS and related | AE41: =IFERROR(_xlfn.FORMULATEXT(J41),"") -> 
D43: COGS
E45: Revenue | G45: =Currency -> US$'000 | H45: ="Row "&ROW(J23) -> Row 23 | J45: =_xlfn.ANCHORARRAY(J23) -> 1500 | K45: 3090 | L45: 4820.4 | M45: 6748.56 | N45: 8941.842 | AE45: =J23#
E46: Gross margin (non-inventory) | G46: =Percentage -> % | J46: =_xlfn.ANCHORARRAY('General Assumptions'!J30) -> 0.7 | K46: 0.7 | L46: 0.7 | M46: 0.7 | N46: 0.7 | AE46: ='General Assumptions'!J30#
E47: Gross profit (non-inventory) | G47: =Currency -> US$'000 | J47: =_xlfn.ANCHORARRAY(J45)*_xlfn.ANCHORARRAY(J46) -> 1050 | K47: 2163 | L47: 3374.28 | M47: 4723.992 | N47: 6259.2894 | AE47: =J45#*J46#
E49: COGS | G49: =Currency -> US$'000 | J49: =_xlfn.ANCHORARRAY(J45)-_xlfn.ANCHORARRAY(J47) -> 450 | K49: 927 | L49: 1446.12 | M49: 2024.568 | N49: 2682.5526 | AE49: =J45#-J47#
D51: Working capital
E53: ='General Assumptions'!E34 -> Days payable | G53: =No._of_days -> Year | J53: =_xlfn.ANCHORARRAY('General Assumptions'!J34) -> 90 | K53: 90 | L53: 90 | M53: 90 | N53: 90 | AE53: ='General Assumptions'!J34#
E55: Days in period | G55: =No._of_days -> Year | J55: =_xlfn.ANCHORARRAY(J$8) -> 365 | K55: 365 | L55: 365 | M55: 366 | N55: 365 | AE55: =J$8#
E57: Closing payables | G57: =Currency -> US$'000 | J57: =_xlfn.ANCHORARRAY(J49)*_xlfn.ANCHORARRAY(J53)/_xlfn.ANCHORARRAY(J55) -> 110.9589041 | K57: 228.5753425 | L57: 356.5775342 | M57: 497.8445902 | N57: 661.451326 | AE57: =J49#*J53#/J55#
D59: Control account
E61: Opening payables | G61: =Currency -> US$'000 | J61: =OFFSET(_xlfn.ANCHORARRAY(J64),,-1) -> 0 | K61: 110.9589041 | L61: 228.5753425 | M61: 356.5775342 | N61: 497.8445902 | AD61: BS | AE61: =OFFSET(J64#,,-1)
E62: COGS | G62: =Currency -> US$'000 | J62: =_xlfn.ANCHORARRAY(J49) -> 450 | K62: 927 | L62: 1446.12 | M62: 2024.568 | N62: 2682.5526 | AD62: IS | AE62: =J49#
E63: Cash payments | G63: =Currency -> US$'000 | J63: =_xlfn.ANCHORARRAY(J64)-_xlfn.ANCHORARRAY(J61)-_xlfn.ANCHORARRAY(J62) -> -339.0410959 | K63: -809.3835616 | L63: -1318.117808 | M63: -1883.300944 | N63: -2518.945864 | AD63: CFS | AE63: =J64#-J61#-J62#
E64: Closing payables | G64: =Currency -> US$'000 | I64: ='Opening Balance Sheet'!$I$28 -> 0 | J64: =_xlfn.ANCHORARRAY(J57) -> 110.9589041 | K64: 228.5753425 | L64: 356.5775342 | M64: 497.8445902 | N64: 661.451326 | AD64: BS | AE64: =J57#

Sheet Opening Balance Sheet
A1: =IF(ISERROR(RIGHT(CELL("filename",A1),LEN(CELL("filename",A1))-FIND("]",CELL("filename",A1)))), "", RIGHT(CELL("filename",A1),LEN(CELL("filename",A1))-FIND("]",CELL("filename",A1)))) -> Opening Balance Sheet
A2: =Model_Name -> Model 07 - COGS Completed.xlsm
A3: Navigator
B4: Error Checks: | F4: =Overall_Error_Check -> 0
I5: =Model_Start_Date-1 -> 2024-06-30
C6: =Timing!C6 -> Start Date
C7: End Date
C8: Number of Days
C9: Counter
B11: =MAX($B$10:$B10)+1 -> 1 | C11: =A1 -> Opening Balance Sheet
C13: Current assets
D14: Cash | G14: =Currency -> US$'000 | K14: 2500
D15: Accounts receivable | G15: =Currency -> US$'000 | K15: 50
D16: Inventory | G16: =Currency -> US$'000 | K16: 50
D17: Other current assets | G17: =Currency -> US$'000 | K17: 10
D18: Total current assets | G18: =Currency -> US$'000 | K18: =SUM(K14:K17) -> 2610
C20: Non-current assets
D21: PP&E | G21: =Currency -> US$'000 | K21: 450
D22: Deferred tax assets | G22: =Currency -> US$'000 | K22: 75
D23: Total non-current assets | G23: =Currency -> US$'000 | K23: =SUM(K21:K22) -> 525
C25: Total assets | G25: =Currency -> US$'000 | K25: =K18+K23 -> 3135
C27: Current liabilities
D28: Accounts payable | G28: =Currency -> US$'000 | K28: 30
D29: Interest payable | G29: US$'000 | K29: 20
D30: Dividends payable | G30: US$'000 | K30: 15
D31: Tax payable | G31: US$'000 | K31: 40
D32: Other current liabilities | G32: US$'000 | K32: 10
D33: Total current liabilities | G33: US$'000 | K33: =SUM(K28:K32) -> 115
C35: Non-current liabilities
D36: Debt | G36: =Currency -> US$'000 | K36: 150
D37: Deferred tax liabilities | G37: =Currency -> US$'000 | K37: 25
D38: Total non-current liabilities | G38: =Currency -> US$'000 | K38: =SUM(K36:K37) -> 175
C40: Total liabilities | G40: =Currency -> US$'000 | K40: =K33+K38 -> 290
C42: Net assets | G42: =Currency -> US$'000 | K42: =K25-K40 -> 2845
C45: Equity
D46: Ordinary equity | G46: =Currency -> US$'000 | K46: 300
E47: Opening retained profits | G47: US$'000 | K47: =K42-SUM(K46,K48,K49) -> 2520
E48: NPAT | G48: US$'000 | K48: 25
E49: Dividends declared | G49: US$'000 | K49: 0
D50: Retained profits | G50: US$'000 | K50: =SUM(K47:K49) -> 2545
D51: Total equity | G51: US$'000 | K51: =K46+K50 -> 2845
C54: Checks
D56: PF error check | G56: [1,0] | I56: =IF(ISERROR(I42-I51),1,0) -> 0 | K56: =IFERROR(_xlfn.FORMULATEXT(HL_Op_BS_Errors),"") -> =IF(ISERROR(I42-I51),1,0)
D57: Balance check | G57: [1,0] | I57: =IF(I56<>0,0,(ROUND(I42-I51,Rounding_Accuracy)<>0)*1) -> 0 | K57: =IFERROR(_xlfn.FORMULATEXT(HL_Op_BS_Balance),"") -> =IF(I56<>0,0,(ROUND(I42-I51,Rounding_Accuracy)<>0)*1)
D58: Insolvency check | G58: [1,0] | I58: =IF(SUM(I56:I57)<>0,0,(I42<0)*1) -> 0 | K58: =IFERROR(_xlfn.FORMULATEXT(HL_Op_BS_Insolvency),"") -> =IF(SUM(I56:I57)<>0,0,(I42<0)*1)

Sheet Income Statement
A1: =IF(ISERROR(RIGHT(CELL("filename",A1),LEN(CELL("filename",A1))-FIND("]",CELL("filename",A1)))), "", RIGHT(CELL("filename",A1),LEN(CELL("filename",A1))-FIND("]",CELL("filename",A1)))) -> Income Statement
A2: =Model_Name -> Model 07 - COGS Completed.xlsm
A3: Navigator
B4: Error Checks: | F4: =Overall_Error_Check -> 0
J5: =_xlfn.ANCHORARRAY(Timing!J5) -> 2025-06-30 | K5: 2026-06-30 | L5: 2027-06-30 | M5: 2028-06-30 | N5: 2029-06-30
C6: Start Date | J6: =_xlfn.ANCHORARRAY(Timing!J6) -> 2024-07-01 | K6: 2025-07-01 | L6: 2026-07-01 | M6: 2027-07-01 | N6: 2028-07-01
C7: End Date | J7: =_xlfn.ANCHORARRAY(Timing!J7) -> 2025-06-30 | K7: 2026-06-30 | L7: 2027-06-30 | M7: 2028-06-30 | N7: 2029-06-30
C8: Number of Days | J8: =_xlfn.ANCHORARRAY(Timing!J8) -> 365 | K8: 365 | L8: 365 | M8: 366 | N8: 365
C9: Counter | J9: =_xlfn.ANCHORARRAY(Timing!J9) -> 1 | K9: 2 | L9: 3 | M9: 4 | N9: 5
B11: =MAX($B$10:$B10)+1 -> 1 | C11: =A1 -> Income Statement
D13: Revenue | G13: =Currency -> US$'000 | J13: =_xlfn.ANCHORARRAY(Calculations!J36) -> 1500 | K13: 3090 | L13: 4820.4 | M13: 6748.56 | N13: 8941.842 | AD13: =IFERROR(_xlfn.FORMULATEXT(J13),"") -> =Calculations!J36#
D14: COGS | G14: =Currency -> US$'000 | J14: =-_xlfn.ANCHORARRAY(Calculations!J62) -> -450 | K14: -927 | L14: -1446.12 | M14: -2024.568 | N14: -2682.5526 | AD14: =-Calculations!J62#
D15: Gross profit | G15: =Currency -> US$'000 | J15: =_xlfn.ANCHORARRAY(J13)+_xlfn.ANCHORARRAY(J14) -> 1050 | K15: 2163 | L15: 3374.28 | M15: 4723.992 | N15: 6259.2894 | AD15: =J13#+J14#
D17: Wastage | G17: =Currency -> US$'000
D18: Operating expenditure | G18: =Currency -> US$'000
A19: w | D19: EBITDA | G19: =Currency -> US$'000 | J19: =SUM(J15,J17:J18) -> 1050 | K19: =SUM(K15,K17:K18) -> 2163 | L19: 3374.28 | M19: 4723.992 | N19: 6259.2894 | O19: 0 | P19: 0 | Q19: 0 | R19: 0 | S19: 0 | T19: 0 | U19: 0 | V19: 0 | W19: 0 | X19: 0 | Y19: 0 | Z19: 0 | AA19: 0 | AB19: 0 | AC19: 0 | AD19: =SUM(J15,J17:J18)
D21: Depreciation | G21: =Currency -> US$'000
A22: w | D22: EBIT | G22: =Currency -> US$'000 | J22: =SUM(J19,J21) -> 1050 | K22: =SUM(K19,K21) -> 2163 | L22: 3374.28 | M22: 4723.992 | N22: 6259.2894 | O22: 0 | P22: 0 | Q22: 0 | R22: 0 | S22: 0 | T22: 0 | U22: 0 | V22: 0 | W22: 0 | X22: 0 | Y22: 0 | Z22: 0 | AA22: 0 | AB22: 0 | AC22: 0 | AD22: =SUM(J19,J21)
D24: Interest expense | G24: =Currency -> US$'000
A25: w | D25: NPBT | G25: =Currency -> US$'000 | J25: =SUM(J22,J24) -> 1050 | K25: =SUM(K22,K24) -> 2163 | L25: =SUM(L22,L24) -> 3374.28 | M25: =SUM(M22,M24) -> 4723.992 | N25: =SUM(N22,N24) -> 6259.2894 | O25: =SUM(O22,O24) -> 0 | P25: =SUM(P22,P24) -> 0 | Q25: =SUM(Q22,Q24) -> 0 | R25: =SUM(R22,R24) -> 0 | S25: =SUM(S22,S24) -> 0 | T25: =SUM(T22,T24) -> 0 | U25: =SUM(U22,U24) -> 0 | V25: =SUM(V22,V24) -> 0 | W25: =SUM(W22,W24) -> 0 | X25: =SUM(X22,X24) -> 0 | Y25: =SUM(Y22,Y24) -> 0 | Z25: =SUM(Z22,Z24) -> 0 | AA25: =SUM(AA22,AA24) -> 0 | AB25: =SUM(AB22,AB24) -> 0 | AC25: =SUM(AC22,AC24) -> 0 | AD25: =SUM(J22,J24)
D27: Tax expense | G27: =Currency -> US$'000
A28: w | D28: NPAT | G28: =Currency -> US$'000 | J28: =SUM(J25,J27) -> 1050 | K28: =SUM(K25,K27) -> 2163 | L28: 3374.28 | M28: 4723.992 | N28: 6259.2894 | O28: 0 | P28: 0 | Q28: 0 | R28: 0 | S28: 0 | T28: 0 | U28: 0 | V28: 0 | W28: 0 | X28: 0 | Y28: 0 | Z28: 0 | AA28: 0 | AB28: 0 | AC28: 0 | AD28: =SUM(J25,J27)

Sheet Balance Sheet
A1: =IF(ISERROR(RIGHT(CELL("filename",A1),LEN(CELL("filename",A1))-FIND("]",CELL("filename",A1)))), "", RIGHT(CELL("filename",A1),LEN(CELL("filename",A1))-FIND("]",CELL("filename",A1)))) -> Balance Sheet
A2: =Model_Name -> Model 07 - COGS Completed.xlsm
A3: Navigator
B4: Error Checks: | F4: =Overall_Error_Check -> 0
J5: =_xlfn.ANCHORARRAY(Timing!J5) -> 2025-06-30 | K5: 2026-06-30 | L5: 2027-06-30 | M5: 2028-06-30 | N5: 2029-06-30
C6: Start Date | J6: =_xlfn.ANCHORARRAY(Timing!J6) -> 2024-07-01 | K6: 2025-07-01 | L6: 2026-07-01 | M6: 2027-07-01 | N6: 2028-07-01
C7: End Date | J7: =_xlfn.ANCHORARRAY(Timing!J7) -> 2025-06-30 | K7: 2026-06-30 | L7: 2027-06-30 | M7: 2028-06-30 | N7: 2029-06-30
C8: Number of Days | J8: =_xlfn.ANCHORARRAY(Timing!J8) -> 365 | K8: 365 | L8: 365 | M8: 366 | N8: 365
C9: Counter | J9: =_xlfn.ANCHORARRAY(Timing!J9) -> 1 | K9: 2 | L9: 3 | M9: 4 | N9: 5
B11: =MAX($B$10:$B10)+1 -> 1 | C11: =A1 -> Balance Sheet
C13: Current assets
A14: w | D14: Cash | G14: =Currency -> US$'000 | J14: =IF(J$9="",,IF(J$9=1,'Opening Balance Sheet'!$I$14,I14)) +'Cash Flow Statement'!J36 -> 914.3835616 | K14: =IF(K$9="",,IF(K$9=1,'Opening Balance Sheet'!$I$14,J14)) +'Cash Flow Statement'!K36 -> 2933.630137 | L14: =IF(L$9="",,IF(L$9=1,'Opening Balance Sheet'!$I$14,K14)) +'Cash Flow Statement'!L36 -> 6151.463014 | M14: =IF(M$9="",,IF(M$9=1,'Opening Balance Sheet'!$I$14,L14)) +'Cash Flow Statement'!M36 -> 10702.79528 | N14: =IF(N$9="",,IF(N$9=1,'Opening Balance Sheet'!$I$14,M14)) +'Cash Flow Statement'!N36 -> 16762.12089 | O14: =IF(O$9="",,IF(O$9=1,'Opening Balance Sheet'!$I$14,N14)) +'Cash Flow Statement'!O36 -> 0 | P14: =IF(P$9="",,IF(P$9=1,'Opening Balance Sheet'!$I$14,O14)) +'Cash Flow Statement'!P36 -> 0 | Q14: =IF(Q$9="",,IF(Q$9=1,'Opening Balance Sheet'!$I$14,P14)) +'Cash Flow Statement'!Q36 -> 0 | R14: =IF(R$9="",,IF(R$9=1,'Opening Balance Sheet'!$I$14,Q14)) +'Cash Flow Statement'!R36 -> 0 | S14: =IF(S$9="",,IF(S$9=1,'Opening Balance Sheet'!$I$14,R14)) +'Cash Flow Statement'!S36 -> 0 | T14: =IF(T$9="",,IF(T$9=1,'Opening Balance Sheet'!$I$14,S14)) +'Cash Flow Statement'!T36 -> 0 | U14: =IF(U$9="",,IF(U$9=1,'Opening Balance Sheet'!$I$14,T14)) +'Cash Flow Statement'!U36 -> 0 | V14: =IF(V$9="",,IF(V$9=1,'Opening Balance Sheet'!$I$14,U14)) +'Cash Flow Statement'!V36 -> 0 | W14: =IF(W$9="",,IF(W$9=1,'Opening Balance Sheet'!$I$14,V14)) +'Cash Flow Statement'!W36 -> 0 | X14: =IF(X$9="",,IF(X$9=1,'Opening Balance Sheet'!$I$14,W14)) +'Cash Flow Statement'!X36 -> 0 | Y14: =IF(Y$9="",,IF(Y$9=1,'Opening Balance Sheet'!$I$14,X14)) +'Cash Flow Statement'!Y36 -> 0 | Z14: =IF(Z$9="",,IF(Z$9=1,'Opening Balance Sheet'!$I$14,Y14)) +'Cash Flow Statement'!Z36 -> 0 | AA14: =IF(AA$9="",,IF(AA$9=1,'Opening Balance Sheet'!$I$14,Z14)) +'Cash Flow Statement'!AA36 -> 0 | AB14: =IF(AB$9="",,IF(AB$9=1,'Opening Balance Sheet'!$I$14,AA14)) +'Cash Flow Statement'!AB36 -> 0 | AC14: =IF(AC$9="",,IF(AC$9=1,'Opening Balance Sheet'!$I$14,AB14)) +'Cash Flow Statement'!AC36 -> 0 | AD14: =IFERROR(_xlfn.FORMULATEXT(J14),"") -> =IF(J$9="",,IF(J$9=1,'Opening Balance Sheet'!$I$14,I14)) +'Cash Flow Statement'!J36
D15: Accounts receivable | G15: =Currency -> US$'000 | J15: =_xlfn.ANCHORARRAY(Calculations!J38) -> 246.5753425 | K15: 507.9452055 | L15: 792.3945205 | M15: 1106.321311 | N15: 1469.891836 | AD15: =Calculations!J38#
D16: Inventory | G16: =Currency -> US$'000
D17: Other current assets | G17: =Currency -> US$'000
A18: w | D18: Total current assets | G18: =Currency -> US$'000 | J18: =SUM(J14:J17) -> 1160.958904 | K18: =SUM(K14:K17) -> 3441.575342 | L18: 6943.857534 | M18: 11809.11659 | N18: 18232.01273 | O18: 0 | P18: 0 | Q18: 0 | R18: 0 | S18: 0 | T18: 0 | U18: 0 | V18: 0 | W18: 0 | X18: 0 | Y18: 0 | Z18: 0 | AA18: 0 | AB18: 0 | AC18: 0 | AD18: =SUM(J14:J17)
C20: Non-current assets
D21: PP&E | G21: =Currency -> US$'000
D22: Deferred tax assets | G22: =Currency -> US$'000
A23: w | D23: Total non-current assets | G23: =Currency -> US$'000 | J23: =SUM(J21:J22) -> 0 | K23: =SUM(K21:K22) -> 0 | L23: 0 | M23: 0 | N23: 0 | O23: 0 | P23: 0 | Q23: 0 | R23: 0 | S23: 0 | T23: 0 | U23: 0 | V23: 0 | W23: 0 | X23: 0 | Y23: 0 | Z23: 0 | AA23: 0 | AB23: 0 | AC23: 0 | AD23: =SUM(J21:J22)
A25: w | C25: Total assets | G25: =Currency -> US$'000 | J25: =SUM(J18,J23) -> 1160.958904 | K25: =SUM(K18,K23) -> 3441.575342 | L25: 6943.857534 | M25: 11809.11659 | N25: 18232.01273 | O25: 0 | P25: 0 | Q25: 0 | R25: 0 | S25: 0 | T25: 0 | U25: 0 | V25: 0 | W25: 0 | X25: 0 | Y25: 0 | Z25: 0 | AA25: 0 | AB25: 0 | AC25: 0 | AD25: =SUM(J18,J23)
C27: Current liabilities
D28: Accounts payable | G28: =Currency -> US$'000 | J28: =_xlfn.ANCHORARRAY(Calculations!J64) -> 110.9589041 | K28: 228.5753425 | L28: 356.5775342 | M28: 497.8445902 | N28: 661.451326 | AD28: =Calculations!J64#
D29: Interest payable | G29: =Currency -> US$'000
D30: Dividends payable | G30: =Currency -> US$'000
D31: Tax payable | G31: =Currency -> US$'000
D32: Other current liabilities | G32: =Currency -> US$'000
A33: w | D33: Total current liabilities | G33: =Currency -> US$'000 | J33: =SUM(J28:J32) -> 110.9589041 | K33: =SUM(K28:K32) -> 228.5753425 | L33: 356.5775342 | M33: 497.8445902 | N33: 661.451326 | O33: 0 | P33: 0 | Q33: 0 | R33: 0 | S33: 0 | T33: 0 | U33: 0 | V33: 0 | W33: 0 | X33: 0 | Y33: 0 | Z33: 0 | AA33: 0 | AB33: 0 | AC33: 0 | AD33: =SUM(J28:J32)
C35: Non-current liabilities
D36: Debt | G36: =Currency -> US$'000
D37: Deferred tax liabilities | G37: =Currency -> US$'000
A38: w | D38: Total non-current liabilities | G38: =Currency -> US$'000 | J38: =SUM(J36:J37) -> 0 | K38: =SUM(K36:K37) -> 0 | L38: 0 | M38: 0 | N38: 0 | O38: 0 | P38: 0 | Q38: 0 | R38: 0 | S38: 0 | T38: 0 | U38: 0 | V38: 0 | W38: 0 | X38: 0 | Y38: 0 | Z38: 0 | AA38: 0 | AB38: 0 | AC38: 0 | AD38: =SUM(J36:J37)
A40: w | C40: Total liabilities | G40: =Currency -> US$'000 | J40: =SUM(J33,J38) -> 110.9589041 | K40: =SUM(K33,K38) -> 228.5753425 | L40: 356.5775342 | M40: 497.8445902 | N40: 661.451326 | O40: 0 | P40: 0 | Q40: 0 | R40: 0 | S40: 0 | T40: 0 | U40: 0 | V40: 0 | W40: 0 | X40: 0 | Y40: 0 | Z40: 0 | AA40: 0 | AB40: 0 | AC40: 0 | AD40: =SUM(J33,J38)
A42: w | C42: Net assets | G42: =Currency -> US$'000 | J42: =J25-J40 -> 1050 | K42: =K25-K40 -> 3213 | L42: 6587.28 | M42: 11311.272 | N42: 17570.5614 | O42: 0 | P42: 0 | Q42: 0 | R42: 0 | S42: 0 | T42: 0 | U42: 0 | V42: 0 | W42: 0 | X42: 0 | Y42: 0 | Z42: 0 | AA42: 0 | AB42: 0 | AC42: 0 | AD42: =J25-J40
C45: Equity
D46: Ordinary equity | G46: =Currency -> US$'000
A47: w | E47: Opening retained profits | G47: =Currency -> US$'000 | J47: =IF(J$9="",,IF(J$9=1,'Opening Balance Sheet'!$I$50,I50)) -> 0 | K47: =IF(K$9="",,IF(K$9=1,'Opening Balance Sheet'!$I$50,J50)) -> 1050 | L47: =IF(L$9="",,IF(L$9=1,'Opening Balance Sheet'!$I$50,K50)) -> 3213 | M47: =IF(M$9="",,IF(M$9=1,'Opening Balance Sheet'!$I$50,L50)) -> 6587.28 | N47: =IF(N$9="",,IF(N$9=1,'Opening Balance Sheet'!$I$50,M50)) -> 11311.272 | O47: =IF(O$9="",,IF(O$9=1,'Opening Balance Sheet'!$I$50,N50)) -> 0 | P47: =IF(P$9="",,IF(P$9=1,'Opening Balance Sheet'!$I$50,O50)) -> 0 | Q47: =IF(Q$9="",,IF(Q$9=1,'Opening Balance Sheet'!$I$50,P50)) -> 0 | R47: =IF(R$9="",,IF(R$9=1,'Opening Balance Sheet'!$I$50,Q50)) -> 0 | S47: =IF(S$9="",,IF(S$9=1,'Opening Balance Sheet'!$I$50,R50)) -> 0 | T47: =IF(T$9="",,IF(T$9=1,'Opening Balance Sheet'!$I$50,S50)) -> 0 | U47: =IF(U$9="",,IF(U$9=1,'Opening Balance Sheet'!$I$50,T50)) -> 0 | V47: =IF(V$9="",,IF(V$9=1,'Opening Balance Sheet'!$I$50,U50)) -> 0 | W47: =IF(W$9="",,IF(W$9=1,'Opening Balance Sheet'!$I$50,V50)) -> 0 | X47: =IF(X$9="",,IF(X$9=1,'Opening Balance Sheet'!$I$50,W50)) -> 0 | Y47: =IF(Y$9="",,IF(Y$9=1,'Opening Balance Sheet'!$I$50,X50)) -> 0 | Z47: =IF(Z$9="",,IF(Z$9=1,'Opening Balance Sheet'!$I$50,Y50)) -> 0 | AA47: =IF(AA$9="",,IF(AA$9=1,'Opening Balance Sheet'!$I$50,Z50)) -> 0 | AB47: =IF(AB$9="",,IF(AB$9=1,'Opening Balance Sheet'!$I$50,AA50)) -> 0 | AC47: =IF(AC$9="",,IF(AC$9=1,'Opening Balance Sheet'!$I$50,AB50)) -> 0 | AD47: =IF(J$9="",,IF(J$9=1,'Opening Balance Sheet'!$I$50,I50))
A48: w | E48: NPAT | G48: =Currency -> US$'000 | J48: ='Income Statement'!J28 -> 1050 | K48: ='Income Statement'!K28 -> 2163 | L48: ='Income Statement'!L28 -> 3374.28 | M48: ='Income Statement'!M28 -> 4723.992 | N48: ='Income Statement'!N28 -> 6259.2894 | O48: ='Income Statement'!O28 -> 0 | P48: ='Income Statement'!P28 -> 0 | Q48: ='Income Statement'!Q28 -> 0 | R48: ='Income Statement'!R28 -> 0 | S48: ='Income Statement'!S28 -> 0 | T48: ='Income Statement'!T28 -> 0 | U48: ='Income Statement'!U28 -> 0 | V48: ='Income Statement'!V28 -> 0 | W48: ='Income Statement'!W28 -> 0 | X48: ='Income Statement'!X28 -> 0 | Y48: ='Income Statement'!Y28 -> 0 | Z48: ='Income Statement'!Z28 -> 0 | AA48: ='Income Statement'!AA28 -> 0 | AB48: ='Income Statement'!AB28 -> 0 | AC48: ='Income Statement'!AC28 -> 0 | AD48: ='Income Statement'!J28
A49: w | E49: Dividends declared | G49: =Currency -> US$'000
A50: w | D50: Retained profits | G50: =Currency -> US$'000 | J50: =SUM(J47:J49) -> 1050 | K50: =SUM(K47:K49) -> 3213 | L50: 6587.28 | M50: 11311.272 | N50: 17570.5614 | O50: 0 | P50: 0 | Q50: 0 | R50: 0 | S50: 0 | T50: 0 | U50: 0 | V50: 0 | W50: 0 | X50: 0 | Y50: 0 | Z50: 0 | AA50: 0 | AB50: 0 | AC50: 0 | AD50: =SUM(J47:J49)
A51: w | C51: Total equity | G51: =Currency -> US$'000 | J51: =SUM(J46,J50) -> 1050 | K51: =SUM(K46,K50) -> 3213 | L51: 6587.28 | M51: 11311.272 | N51: 17570.5614 | O51: 0 | P51: 0 | Q51: 0 | R51: 0 | S51: 0 | T51: 0 | U51: 0 | V51: 0 | W51: 0 | X51: 0 | Y51: 0 | Z51: 0 | AA51: 0 | AB51: 0 | AC51: 0 | AD51: =SUM(J46,J50)
C54: Checks | AD54: =IFERROR(_xlfn.FORMULATEXT(J54),"") -> 
A56: w | D56: PF error check | G56: =Boolean -> [1,0] | I56: =MAX(J56:AC56) -> 0 | J56: =IF(ISERROR(_xlfn.ANCHORARRAY(J42)-_xlfn.ANCHORARRAY(J51)),1,0) -> 0 | K56: =IF(ISERROR(_xlfn.ANCHORARRAY(K42)-_xlfn.ANCHORARRAY(K51)),1,0) -> 0 | L56: =IF(ISERROR(_xlfn.ANCHORARRAY(L42)-_xlfn.ANCHORARRAY(L51)),1,0) -> 0 | M56: =IF(ISERROR(_xlfn.ANCHORARRAY(M42)-_xlfn.ANCHORARRAY(M51)),1,0) -> 0 | N56: =IF(ISERROR(_xlfn.ANCHORARRAY(N42)-_xlfn.ANCHORARRAY(N51)),1,0) -> 0 | O56: =IF(ISERROR(_xlfn.ANCHORARRAY(O42)-_xlfn.ANCHORARRAY(O51)),1,0) -> 0 | P56: =IF(ISERROR(_xlfn.ANCHORARRAY(P42)-_xlfn.ANCHORARRAY(P51)),1,0) -> 0 | Q56: =IF(ISERROR(_xlfn.ANCHORARRAY(Q42)-_xlfn.ANCHORARRAY(Q51)),1,0) -> 0 | R56: =IF(ISERROR(_xlfn.ANCHORARRAY(R42)-_xlfn.ANCHORARRAY(R51)),1,0) -> 0 | S56: =IF(ISERROR(_xlfn.ANCHORARRAY(S42)-_xlfn.ANCHORARRAY(S51)),1,0) -> 0 | T56: =IF(ISERROR(_xlfn.ANCHORARRAY(T42)-_xlfn.ANCHORARRAY(T51)),1,0) -> 0 | U56: =IF(ISERROR(_xlfn.ANCHORARRAY(U42)-_xlfn.ANCHORARRAY(U51)),1,0) -> 0 | V56: =IF(ISERROR(_xlfn.ANCHORARRAY(V42)-_xlfn.ANCHORARRAY(V51)),1,0) -> 0 | W56: =IF(ISERROR(_xlfn.ANCHORARRAY(W42)-_xlfn.ANCHORARRAY(W51)),1,0) -> 0 | X56: =IF(ISERROR(_xlfn.ANCHORARRAY(X42)-_xlfn.ANCHORARRAY(X51)),1,0) -> 0 | Y56: =IF(ISERROR(_xlfn.ANCHORARRAY(Y42)-_xlfn.ANCHORARRAY(Y51)),1,0) -> 0 | Z56: =IF(ISERROR(_xlfn.ANCHORARRAY(Z42)-_xlfn.ANCHORARRAY(Z51)),1,0) -> 0 | AA56: =IF(ISERROR(_xlfn.ANCHORARRAY(AA42)-_xlfn.ANCHORARRAY(AA51)),1,0) -> 0 | AB56: =IF(ISERROR(_xlfn.ANCHORARRAY(AB42)-_xlfn.ANCHORARRAY(AB51)),1,0) -> 0 | AC56: =IF(ISERROR(_xlfn.ANCHORARRAY(AC42)-_xlfn.ANCHORARRAY(AC51)),1,0) -> 0 | AD56: =IF(ISERROR(J42#-J51#),1,0)
A57: w | D57: Balance check | G57: =Boolean -> [1,0] | I57: =MAX(J57:AC57) -> 0 | J57: =IF(_xlfn.ANCHORARRAY(J56)<>0,0,(ROUND(_xlfn.ANCHORARRAY(J42)-_xlfn.ANCHORARRAY(J51),Rounding_Accuracy)<>0)*1) -> 0 | K57: =IF(_xlfn.ANCHORARRAY(K56)<>0,0,(ROUND(_xlfn.ANCHORARRAY(K42)-_xlfn.ANCHORARRAY(K51),Rounding_Accuracy)<>0)*1) -> 0 | L57: =IF(_xlfn.ANCHORARRAY(L56)<>0,0,(ROUND(_xlfn.ANCHORARRAY(L42)-_xlfn.ANCHORARRAY(L51),Rounding_Accuracy)<>0)*1) -> 0 | M57: =IF(_xlfn.ANCHORARRAY(M56)<>0,0,(ROUND(_xlfn.ANCHORARRAY(M42)-_xlfn.ANCHORARRAY(M51),Rounding_Accuracy)<>0)*1) -> 0 | N57: =IF(_xlfn.ANCHORARRAY(N56)<>0,0,(ROUND(_xlfn.ANCHORARRAY(N42)-_xlfn.ANCHORARRAY(N51),Rounding_Accuracy)<>0)*1) -> 0 | O57: =IF(_xlfn.ANCHORARRAY(O56)<>0,0,(ROUND(_xlfn.ANCHORARRAY(O42)-_xlfn.ANCHORARRAY(O51),Rounding_Accuracy)<>0)*1) -> 0 | P57: =IF(_xlfn.ANCHORARRAY(P56)<>0,0,(ROUND(_xlfn.ANCHORARRAY(P42)-_xlfn.ANCHORARRAY(P51),Rounding_Accuracy)<>0)*1) -> 0 | Q57: =IF(_xlfn.ANCHORARRAY(Q56)<>0,0,(ROUND(_xlfn.ANCHORARRAY(Q42)-_xlfn.ANCHORARRAY(Q51),Rounding_Accuracy)<>0)*1) -> 0 | R57: =IF(_xlfn.ANCHORARRAY(R56)<>0,0,(ROUND(_xlfn.ANCHORARRAY(R42)-_xlfn.ANCHORARRAY(R51),Rounding_Accuracy)<>0)*1) -> 0 | S57: =IF(_xlfn.ANCHORARRAY(S56)<>0,0,(ROUND(_xlfn.ANCHORARRAY(S42)-_xlfn.ANCHORARRAY(S51),Rounding_Accuracy)<>0)*1) -> 0 | T57: =IF(_xlfn.ANCHORARRAY(T56)<>0,0,(ROUND(_xlfn.ANCHORARRAY(T42)-_xlfn.ANCHORARRAY(T51),Rounding_Accuracy)<>0)*1) -> 0 | U57: =IF(_xlfn.ANCHORARRAY(U56)<>0,0,(ROUND(_xlfn.ANCHORARRAY(U42)-_xlfn.ANCHORARRAY(U51),Rounding_Accuracy)<>0)*1) -> 0 | V57: =IF(_xlfn.ANCHORARRAY(V56)<>0,0,(ROUND(_xlfn.ANCHORARRAY(V42)-_xlfn.ANCHORARRAY(V51),Rounding_Accuracy)<>0)*1) -> 0 | W57: =IF(_xlfn.ANCHORARRAY(W56)<>0,0,(ROUND(_xlfn.ANCHORARRAY(W42)-_xlfn.ANCHORARRAY(W51),Rounding_Accuracy)<>0)*1) -> 0 | X57: =IF(_xlfn.ANCHORARRAY(X56)<>0,0,(ROUND(_xlfn.ANCHORARRAY(X42)-_xlfn.ANCHORARRAY(X51),Rounding_Accuracy)<>0)*1) -> 0 | Y57: =IF(_xlfn.ANCHORARRAY(Y56)<>0,0,(ROUND(_xlfn.ANCHORARRAY(Y42)-_xlfn.ANCHORARRAY(Y51),Rounding_Accuracy)<>0)*1) -> 0 | Z57: =IF(_xlfn.ANCHORARRAY(Z56)<>0,0,(ROUND(_xlfn.ANCHORARRAY(Z42)-_xlfn.ANCHORARRAY(Z51),Rounding_Accuracy)<>0)*1) -> 0 | AA57: =IF(_xlfn.ANCHORARRAY(AA56)<>0,0,(ROUND(_xlfn.ANCHORARRAY(AA42)-_xlfn.ANCHORARRAY(AA51),Rounding_Accuracy)<>0)*1) -> 0 | AB57: =IF(_xlfn.ANCHORARRAY(AB56)<>0,0,(ROUND(_xlfn.ANCHORARRAY(AB42)-_xlfn.ANCHORARRAY(AB51),Rounding_Accuracy)<>0)*1) -> 0 | AC57: =IF(_xlfn.ANCHORARRAY(AC56)<>0,0,(ROUND(_xlfn.ANCHORARRAY(AC42)-_xlfn.ANCHORARRAY(AC51),Rounding_Accuracy)<>0)*1) -> 0 | AD57: =IF(J56#<>0,0,(ROUND(J42#-J51#,Rounding_Accuracy)<>0)*1)
A58: w | D58: Insolvency check | G58: =Boolean -> [1,0] | I58: 0 | J58: =IF(_xlfn.ANCHORARRAY(J56)+_xlfn.ANCHORARRAY(J57)<>0,0,(_xlfn.ANCHORARRAY(J42)<0)*1) -> 0 | K58: =IF(_xlfn.ANCHORARRAY(K56)+_xlfn.ANCHORARRAY(K57)<>0,0,(_xlfn.ANCHORARRAY(K42)<0)*1) -> 0 | L58: =IF(_xlfn.ANCHORARRAY(L56)+_xlfn.ANCHORARRAY(L57)<>0,0,(_xlfn.ANCHORARRAY(L42)<0)*1) -> 0 | M58: =IF(_xlfn.ANCHORARRAY(M56)+_xlfn.ANCHORARRAY(M57)<>0,0,(_xlfn.ANCHORARRAY(M42)<0)*1) -> 0 | N58: =IF(_xlfn.ANCHORARRAY(N56)+_xlfn.ANCHORARRAY(N57)<>0,0,(_xlfn.ANCHORARRAY(N42)<0)*1) -> 0 | O58: =IF(_xlfn.ANCHORARRAY(O56)+_xlfn.ANCHORARRAY(O57)<>0,0,(_xlfn.ANCHORARRAY(O42)<0)*1) -> 0 | P58: =IF(_xlfn.ANCHORARRAY(P56)+_xlfn.ANCHORARRAY(P57)<>0,0,(_xlfn.ANCHORARRAY(P42)<0)*1) -> 0 | Q58: =IF(_xlfn.ANCHORARRAY(Q56)+_xlfn.ANCHORARRAY(Q57)<>0,0,(_xlfn.ANCHORARRAY(Q42)<0)*1) -> 0 | R58: =IF(_xlfn.ANCHORARRAY(R56)+_xlfn.ANCHORARRAY(R57)<>0,0,(_xlfn.ANCHORARRAY(R42)<0)*1) -> 0 | S58: =IF(_xlfn.ANCHORARRAY(S56)+_xlfn.ANCHORARRAY(S57)<>0,0,(_xlfn.ANCHORARRAY(S42)<0)*1) -> 0 | T58: =IF(_xlfn.ANCHORARRAY(T56)+_xlfn.ANCHORARRAY(T57)<>0,0,(_xlfn.ANCHORARRAY(T42)<0)*1) -> 0 | U58: =IF(_xlfn.ANCHORARRAY(U56)+_xlfn.ANCHORARRAY(U57)<>0,0,(_xlfn.ANCHORARRAY(U42)<0)*1) -> 0 | V58: =IF(_xlfn.ANCHORARRAY(V56)+_xlfn.ANCHORARRAY(V57)<>0,0,(_xlfn.ANCHORARRAY(V42)<0)*1) -> 0 | W58: =IF(_xlfn.ANCHORARRAY(W56)+_xlfn.ANCHORARRAY(W57)<>0,0,(_xlfn.ANCHORARRAY(W42)<0)*1) -> 0 | X58: =IF(_xlfn.ANCHORARRAY(X56)+_xlfn.ANCHORARRAY(X57)<>0,0,(_xlfn.ANCHORARRAY(X42)<0)*1) -> 0 | Y58: =IF(_xlfn.ANCHORARRAY(Y56)+_xlfn.ANCHORARRAY(Y57)<>0,0,(_xlfn.ANCHORARRAY(Y42)<0)*1) -> 0 | Z58: =IF(_xlfn.ANCHORARRAY(Z56)+_xlfn.ANCHORARRAY(Z57)<>0,0,(_xlfn.ANCHORARRAY(Z42)<0)*1) -> 0 | AA58: =IF(_xlfn.ANCHORARRAY(AA56)+_xlfn.ANCHORARRAY(AA57)<>0,0,(_xlfn.ANCHORARRAY(AA42)<0)*1) -> 0 | AB58: =IF(_xlfn.ANCHORARRAY(AB56)+_xlfn.ANCHORARRAY(AB57)<>0,0,(_xlfn.ANCHORARRAY(AB42)<0)*1) -> 0 | AC58: =IF(_xlfn.ANCHORARRAY(AC56)+_xlfn.ANCHORARRAY(AC57)<>0,0,(_xlfn.ANCHORARRAY(AC42)<0)*1) -> 0 | AD58: =IF(J56#+J57#<>0,0,(J42#<0)*1)

Sheet Cash Flow Statement
A1: =IF(ISERROR(RIGHT(CELL("filename",A1),LEN(CELL("filename",A1))-FIND("]",CELL("filename",A1)))), "", RIGHT(CELL("filename",A1),LEN(CELL("filename",A1))-FIND("]",CELL("filename",A1)))) -> Cash Flow Statement
A2: =Model_Name -> Model 07 - COGS Completed.xlsm
A3: Navigator
B4: Error Checks: | G4: =Overall_Error_Check -> 0
J5: =_xlfn.ANCHORARRAY(Timing!J5) -> 2025-06-30 | K5: 2026-06-30 | L5: 2027-06-30 | M5: 2028-06-30 | N5: 2029-06-30
C6: Start Date | J6: =_xlfn.ANCHORARRAY(Timing!J6) -> 2024-07-01 | K6: 2025-07-01 | L6: 2026-07-01 | M6: 2027-07-01 | N6: 2028-07-01
C7: End Date | J7: =_xlfn.ANCHORARRAY(Timing!J7) -> 2025-06-30 | K7: 2026-06-30 | L7: 2027-06-30 | M7: 2028-06-30 | N7: 2029-06-30
C8: Number of Days | J8: =_xlfn.ANCHORARRAY(Timing!J8) -> 365 | K8: 365 | L8: 365 | M8: 366 | N8: 365
C9: Counter | J9: =_xlfn.ANCHORARRAY(Timing!J9) -> 1 | K9: 2 | L9: 3 | M9: 4 | N9: 5
B11: =MAX($B$10:$B10)+1 -> 1 | C11: =A1 -> Cash Flow Statement
C13: Direct Cash Flow Statement
D15: Operating cash flow | P15: =IFERROR(_xlfn.FORMULATEXT(J15),"") -> 
E16: Cash receipts | G16: =Currency -> US$'000 | J16: =-_xlfn.ANCHORARRAY(Calculations!J37) -> 1253.424658 | K16: 2828.630137 | L16: 4535.950685 | M16: 6434.633209 | N16: 8578.271476 | AD16: =IFERROR(_xlfn.FORMULATEXT(J16),"") -> =-Calculations!J37#
F17: Direct cash payments | G17: =Currency -> US$'000 | J17: =_xlfn.ANCHORARRAY(Calculations!J63) -> -339.0410959 | K17: -809.3835616 | L17: -1318.117808 | M17: -1883.300944 | N17: -2518.945864 | AD17: =Calculations!J63#
F18: Indirect cash payments | G18: =Currency -> US$'000
A19: w | E19: Cash payments | G19: =Currency -> US$'000 | J19: =SUM(J17:J18) -> -339.0410959 | K19: =SUM(K17:K18) -> -809.3835616 | L19: -1318.117808 | M19: -1883.300944 | N19: -2518.945864 | O19: 0 | P19: 0 | Q19: 0 | R19: 0 | S19: 0 | T19: 0 | U19: 0 | V19: 0 | W19: 0 | X19: 0 | Y19: 0 | Z19: 0 | AA19: 0 | AB19: 0 | AC19: 0 | AD19: =SUM(J17:J18)
E20: Interest paid | G20: =Currency -> US$'000
E21: Tax paid | G21: =Currency -> US$'000
A22: w | E22: Net operating cash flow | G22: =Currency -> US$'000 | J22: =SUM(J16,J19:J21) -> 914.3835616 | K22: =SUM(K16,K19:K21) -> 2019.246575 | L22: 3217.832877 | M22: 4551.332265 | N22: 6059.325612 | O22: 0 | P22: 0 | Q22: 0 | R22: 0 | S22: 0 | T22: 0 | U22: 0 | V22: 0 | W22: 0 | X22: 0 | Y22: 0 | Z22: 0 | AA22: 0 | AB22: 0 | AC22: 0 | AD22: =SUM(J16,J19:J21)
D24: Investing cash flows
E25: Purchases of non-current assets | G25: =Currency -> US$'000
A26: w | E26: Net investing cash flows | G26: =Currency -> US$'000 | J26: =SUM(J25) -> 0 | K26: =SUM(K25) -> 0 | L26: 0 | M26: 0 | N26: 0 | O26: 0 | P26: 0 | Q26: 0 | R26: 0 | S26: 0 | T26: 0 | U26: 0 | V26: 0 | W26: 0 | X26: 0 | Y26: 0 | Z26: 0 | AA26: 0 | AB26: 0 | AC26: 0 | AD26: =SUM(J25)
D28: Financing cash flows
E29: Debt drawdowns | G29: =Currency -> US$'000
E30: Debt repayments | G30: =Currency -> US$'000
E31: Ordinary equity issuances | G31: =Currency -> US$'000
E32: Ordinary equity buybacks | G32: =Currency -> US$'000
E33: Dividends paid | G33: =Currency -> US$'000
A34: w | E34: Net financing cash flows | G34: =Currency -> US$'000 | J34: =SUM(J29:J33) -> 0 | K34: =SUM(K29:K33) -> 0 | L34: 0 | M34: 0 | N34: 0 | O34: 0 | P34: 0 | Q34: 0 | R34: 0 | S34: 0 | T34: 0 | U34: 0 | V34: 0 | W34: 0 | X34: 0 | Y34: 0 | Z34: 0 | AA34: 0 | AB34: 0 | AC34: 0 | AD34: =SUM(J29:J33)
A36: w | D36: Net increase / (decrease) in cash held | G36: =Currency -> US$'000 | J36: =SUM(J22,J26,J34) -> 914.3835616 | K36: =SUM(K22,K26,K34) -> 2019.246575 | L36: 3217.832877 | M36: 4551.332265 | N36: 6059.325612 | O36: 0 | P36: 0 | Q36: 0 | R36: 0 | S36: 0 | T36: 0 | U36: 0 | V36: 0 | W36: 0 | X36: 0 | Y36: 0 | Z36: 0 | AA36: 0 | AB36: 0 | AC36: 0 | AD36: =SUM(J22,J26,J34)

Sheet Timing
A1: =IF(ISERROR(RIGHT(CELL("filename",A1),LEN(CELL("filename",A1))-FIND("]",CELL("filename",A1)))), "", RIGHT(CELL("filename",A1),LEN(CELL("filename",A1))-FIND("]",CELL("filename",A1)))) -> Timing
A2: =Model_Name -> Model 07 - COGS Completed.xlsm
A3: Navigator
B4: Error Checks: | F4: =Overall_Error_Check -> 0
J5: =_xlfn.ANCHORARRAY(J$7) -> 2025-06-30 | K5: 2026-06-30 | L5: 2027-06-30 | M5: 2028-06-30 | N5: 2029-06-30
C6: Start Date | J6: =IF(_xlfn.ANCHORARRAY(J$9)=1,Model_Start_Date,OFFSET(_xlfn.ANCHORARRAY(J7),,-1)+1) -> 2024-07-01 | K6: 2025-07-01 | L6: 2026-07-01 | M6: 2027-07-01 | N6: 2028-07-01
C7: End Date | J7: =EOMONTH(Model_Start_Date, MOD(Periodicity+Reporting_Month_Factor -MONTH(Model_Start_Date),Periodicity)+Periodicity*(_xlfn.ANCHORARRAY(J$9)-1)) -> 2025-06-30 | K7: 2026-06-30 | L7: 2027-06-30 | M7: 2028-06-30 | N7: 2029-06-30
C8: Number of Days | J8: =_xlfn.ANCHORARRAY(J7)-_xlfn.ANCHORARRAY(J6)+1 -> 365 | K8: 365 | L8: 365 | M8: 366 | N8: 365
C9: Counter | J9: =_xlfn.SEQUENCE(1,Number_of_Periods) -> 1 | K9: 2 | L9: 3 | M9: 4 | N9: 5
B11: =MAX($B$10:$B10)+1 -> 1 | C11: Timing Assumptions
C13: Data (do not change once modelling has commenced)
D15: Number of Periods | H15: 5 | K15: Number_of_Periods
D17: Model Start Date | H17: 2024-07-01 | K17: Model_Start_Date
D19: Number of Months in a Full Period | H19: 12 | K19: Periodicity
D21: Example Reporting Month | H21: 6 | I21: ="e.g. "&TEXT(DATE(YEAR(Model_Start_Date)+IF(Example_Reporting_Month<MONTH(Model_Start_Date),1,0),Example_Reporting_Month+1,1)-1,"dd-Mmm-yy") -> e.g. 30-Jun-25 | K21: Example_Reporting_Month
D23: Reporting Month Factor | H23: =MOD(Example_Reporting_Month-1,Periodicity)+1 -> 6 | K23: Reporting_Month_Factor

Sheet Lookup
A1: =IF(ISERROR(RIGHT(CELL("filename",A1),LEN(CELL("filename",A1))-FIND("]",CELL("filename",A1)))), "", RIGHT(CELL("filename",A1),LEN(CELL("filename",A1))-FIND("]",CELL("filename",A1)))) -> Lookup
A2: =Model_Name -> Model 07 - COGS Completed.xlsm
A3: Navigator
B4: Error Checks: | F4: =Overall_Error_Check -> 0
B6: =MAX($B$5:$B5)+1 -> 1 | C6: =A1 -> Lookup
C8: Year Lookups
D10: LU_Future_Years
D11: =IF(_xlfn.SEQUENCE(Number_of_Periods)=1, "Actuals Throughout",TRANSPOSE(_xlfn.ANCHORARRAY(Timing!J7))) -> Actuals Throughout | F11: LU_Future_Years | G11: =_xlfn.FORMULATEXT(D11) -> =IF(SEQUENCE(Number_of_Periods)=1, "Actuals Throughout",TRANSPOSE(Timing!J7#))
D12: 2026-06-30
D13: 2027-06-30
D14: 2028-06-30
D15: 2029-06-30

Sheet Template Sheet
A1: =IF(ISERROR(RIGHT(CELL("filename",A1),LEN(CELL("filename",A1))-FIND("]",CELL("filename",A1)))), "", RIGHT(CELL("filename",A1),LEN(CELL("filename",A1))-FIND("]",CELL("filename",A1)))) -> Template Sheet
A2: =Model_Name -> Model 07 - COGS Completed.xlsm
A3: Navigator
E4: Error Checks: | I4: =Overall_Error_Check -> 0
B6: =MAX($B$5:$B5)+1 -> 1 | C6: First Section
C8: Heading
D10: Sub Heading

Sheet Error Checks
A1: =IF(ISERROR(RIGHT(CELL("filename",A1),LEN(CELL("filename",A1))-FIND("]",CELL("filename",A1)))), "", RIGHT(CELL("filename",A1),LEN(CELL("filename",A1))-FIND("]",CELL("filename",A1)))) -> Error Checks
A2: =Model_Name -> Model 07 - COGS Completed.xlsm
A3: Navigator
B4: Error Checks: | F4: =Overall_Error_Check -> 0
B6: =MAX($B$5:$B5)+1 -> 1 | C6: Error Checks
C8: Summary of Errors
D10: Assumptions
E12: Balance Sheet has no errors | I12: =HL_BS_Errors -> 0
E13: Balance Sheet balances | I13: =HL_BS_Balance -> 0
E14: Insolvency check for Balance Sheet | I14: =HL_BS_Insolvency -> 0
E15: Opening Balance Sheet has no errors | I15: =HL_Op_BS_Errors -> 0
E16: Opening Balance Sheet balances | I16: =HL_Op_BS_Balance -> 0
E17: Insolvency check for Opening Balance Sheet | I17: =HL_Op_BS_Insolvency -> 0
E25: =C8 -> Summary of Errors | I25: =MAX(I12:I24) -> 0
